fUST/lending_fUST_20250527
["ID","MTS","AMOUNT","RATE_DAILY","PERIOD"]
[362485566,1748335845083,-241.64,0.00019371,2]
[362485567,1748335845092,-477.49,0.00019452,2]
[362485568,1748335845102,-430.0,0.00019452,2]
[362485569,1748335845112,-430.0,0.00019452,2]
[362485570,1748335845122,-236.71,0.00019452,2]
[362485571,1748335845131,-430.0,0.00019452,2]
[362485572,1748335845141,-312.81093315,0.00019452,2]
[362485573,1748335845151,-1383.99,0.00019452,2]
[362485574,1748335845161,-430.0,0.00019452,2]
[362485575,1748335845170,-430.0,0.00019452,2]
[362485576,1748335845180,-430.0,0.00019452,2]
[362485577,1748335845190,-430.0,0.00019452,2]
[362485578,1748335845200,-430.0,0.00019452,2]
[362485579,1748335845210,-267.33774952,0.00019452,2]
[362485580,1748335845220,-430.0,0.00019452,2]
[362485581,1748335845230,-430.0,0.00019452,2]
[362485582,1748335845239,-430.0,0.00019452,2]
[362485583,1748335845249,-430.0,0.00019452,2]
[362485584,1748335845259,-430.0,0.00019452,2]
[362485585,1748335845268,-430.0,0.00019452,2]
[362485586,1748335845278,-430.0,0.00019452,2]
[362485587,1748335845287,-430.0,0.00019452,2]
[362485588,1748335845297,-430.0,0.00019452,2]
[362485589,1748335845307,-430.0,0.00019452,2]
[362485590,1748335845316,-430.0,0.00019452,2]
[362485591,1748335845325,-430.0,0.00019452,2]
[362485592,1748335845335,-217.53002541,0.00019452,2]
[362485593,1748335845346,-430.0,0.00019452,2]
[362485594,1748335845356,-430.0,0.00019452,2]
[362485595,1748335845365,-430.0,0.00019452,2]
[362485596,1748335845375,-430.0,0.00019452,2]
[362485597,1748335845385,-430.0,0.00019452,2]
[362485598,1748335845396,-430.0,0.00019452,2]
[362485599,1748335845405,-430.0,0.00019452,2]
[362485600,1748335845415,-430.0,0.00019452,2]
[362485601,1748335845425,-500.0,0.00019496,2]
[362485602,1748335845434,-500.0,0.00019496,2]
[362485603,1748335845444,-167.95035286,0.00019529,2]
[362485604,1748335845454,-500.0,0.00019544,2]
[362485605,1748335845464,-194.37661371,0.00019544,2]
[362485606,1748335845473,-1000.0,0.00019721,2]
[362485607,1748335845483,-500.0,0.00019721,2]
[362485608,1748335845494,-500.0,0.00019721,2]
[362485609,1748335845507,-430.0,0.00019726,2]
[362485610,1748335845516,-1383.99,0.00019726,2]
[362485611,1748335845526,-430.0,0.00019726,2]
[362485612,1748335845536,-430.0,0.00019726,2]
[362485614,1748335845547,-430.0,0.00019726,2]
[362485615,1748335845556,-430.0,0.00019726,2]
[362485616,1748335845566,-430.0,0.00019726,2]
[362485617,1748335845575,-430.0,0.00019726,2]
[362485618,1748335845586,-430.0,0.00019726,2]
[362485619,1748335845596,-430.0,0.00019726,2]
[362485620,1748335845605,-374.47620634,0.00019726,2]
[362485621,1748335845615,-430.0,0.00019726,2]
[362485622,1748335845625,-451.07878114,0.00019726,2]
[362485623,1748335845635,-430.0,0.00019726,2]
[362485624,1748335845644,-430.0,0.00019726,2]
[362485625,1748335845654,-218.34011345,0.00019726,2]
[362485626,1748335845663,-430.0,0.00019726,2]
[362485627,1748335845673,-430.0,0.00019726,2]
[362485629,1748335845683,-430.0,0.00019726,2]
[362485630,1748335845692,-430.0,0.00019726,2]
[362485631,1748335845702,-420.0,0.00019824,2]
[362485632,1748335845711,-341.32086056,0.000199,2]
[362485633,1748335845721,-201.79302535,0.00019905,2]
[362485634,1748335845730,-430.0,0.0002,2]
[362485635,1748335845740,-1383.99,0.0002,2]
[362485636,1748335845750,-430.0,0.0002,2]
[362485637,1748335845759,-430.0,0.0002,2]
[362485638,1748335845768,-285.25841699,0.0002,2]
[362485639,1748335845777,-430.0,0.0002,2]
[362485640,1748335845787,-430.0,0.0002,2]
[362485641,1748335845796,-264.78025543,0.0002,2]
[362485642,1748335845806,-430.0,0.0002,2]
[362485643,1748335845815,-430.0,0.0002,2]
[362485644,1748335845824,-430.0,0.0002,2]
[362485645,1748335845834,-194.09,0.0002,2]
[362485646,1748335845843,-430.0,0.0002,2]
[362485647,1748335845853,-447.57393872,0.0002,2]
[362485648,1748335845862,-430.0,0.0002,2]
[362485649,1748335845871,-500.0,0.00020044,2]
[362485650,1748335845881,-500.0,0.00020044,2]
[362485651,1748335845890,-341.32086042,0.00020072,2]
[362485652,1748335845900,-510.2538317,0.00020092,2]
[362485653,1748335845909,-341.32086042,0.00020245,2]
[362485654,1748335845918,-362.46,0.00020251,2]
[362485655,1748335845929,-430.0,0.00020273,2]
[362485656,1748335845937,-1383.99,0.00020273,2]
[362485657,1748335845947,-430.0,0.00020273,2]
[362485658,1748335845955,-430.0,0.00020273,2]
[362485659,1748335845964,-209.48174484,0.00020273,2]
[362485660,1748335845975,-430.0,0.00020273,2]
[362485661,1748335845984,-436.85132173,0.00020273,2]
[362485662,1748335845993,-577.58807681,0.00020273,2]
[362485663,1748335846003,-430.0,0.00020273,2]
[362485664,1748335846012,-430.0,0.00020273,2]
[362485665,1748335846022,-430.0,0.00020273,2]
[362485666,1748335846031,-166.0,0.00020274,2]
[362485667,1748335846041,-341.32086042,0.00020417,3]
[362485668,1748335846051,-500.0,0.00020522,2]
[362485669,1748335846061,-224.14659866,0.00020547,2]
[362485670,1748335846070,-1383.99,0.00020547,2]
[362485671,1748335846079,-387.46318168,0.00020547,2]
[362485672,1748335846088,-430.0,0.00020547,2]
[362485673,1748335846098,-430.0,0.00020547,2]
[362485674,1748335846107,-430.0,0.00020547,2]
[362485675,1748335846117,-430.0,0.00020547,2]
[362485676,1748335846126,-430.0,0.00020547,2]
[362485677,1748335846135,-341.32086042,0.0002059,3]
[362485678,1748335846144,-201.79302535,0.00020737,2]
[362485679,1748335846154,-341.32086042,0.00020762,3]
[362485681,1748335846164,-1383.99,0.00020821,2]
[362485683,1748335846173,-430.0,0.00020821,2]
[362485684,1748335846183,-430.0,0.00020821,2]
[362485685,1748335846193,-430.0,0.00020821,2]
[362485686,1748335846202,-430.0,0.00020821,2]
[362485688,1748335846211,-420.0,0.00020892,2]
[362485690,1748335846221,-341.32086042,0.00020934,4]
[362485692,1748335846231,-164.105,0.00020952,2]
[362485694,1748335846240,-1383.99,0.00021095,2]
[362485695,1748335846250,-430.0,0.00021095,2]
[362485696,1748335846259,-430.0,0.00021095,2]
[362485697,1748335846268,-391.96885132,0.00021095,2]
[362485698,1748335846277,-430.0,0.00021095,2]
[362485699,1748335846287,-341.32086042,0.00021107,4]
[362485700,1748335846297,-483.29,0.00021132,2]
[362485701,1748335846306,-500.0,0.00021164,2]
[362485702,1748335846315,-341.32086042,0.00021279,5]
[362485703,1748335846325,-1383.99,0.00021369,2]
[362485704,1748335846335,-430.0,0.00021369,2]
[362485705,1748335846345,-430.0,0.00021369,2]
[362485706,1748335846354,-473.49679062,0.00021369,2]
[362485707,1748335846363,-341.32086042,0.00021452,5]
[362485708,1748335846373,-201.79302535,0.0002157,2]
[362485709,1748335846382,-341.32086042,0.00021624,5]
[362485710,1748335846391,-587.0,0.00021626,2]
[362485711,1748335846400,-1383.99,0.00021643,2]
[362485712,1748335846410,-430.0,0.00021643,2]
[362485713,1748335846419,-430.0,0.00021643,2]
[362485714,1748335846429,-341.32086042,0.00021797,6]
[362485715,1748335846439,-1383.99,0.00021917,2]
[362485716,1748335846448,-430.0,0.00021917,2]
[362485717,1748335846457,-430.0,0.00021917,2]
[362485718,1748335846467,-341.32086042,0.00021969,6]
[362485719,1748335846476,-604.11,0.00022012,2]
[362485720,1748335846486,-1383.99,0.00022191,2]
[362485724,1748335846595,-430.0,0.00022191,2]
[362485725,1748335846617,-443.36937409,0.00022191,2]
[362485726,1748335846628,-201.79302535,0.00022402,2]
[362485727,1748335846639,-1383.99,0.00022465,2]
[362485728,1748335846648,-430.0,0.00022465,2]
[362485729,1748335846658,-1383.99,0.00022739,2]
[362485730,1748335846668,-430.0,0.00022739,2]
[362485731,1748335846678,-587.0,0.00022768,2]
[362485732,1748335846689,-724.93,0.00022893,2]
[362485733,1748335846698,-1383.99,0.00023013,2]
[362485734,1748335846708,-430.0,0.00023013,2]
[362485735,1748335846718,-201.79302535,0.00023235,2]
[362485736,1748335846728,-1383.99,0.00023287,2]
[362485737,1748335846738,-430.0,0.00023287,2]
[362485738,1748335846747,-500.0,0.00023356,2]
[362485739,1748335846757,-1383.99,0.00023561,2]
[362485740,1748335846767,-430.0,0.00023561,2]
[362485741,1748335846778,-823.0,0.00023593,2]
[362485742,1748335846790,-845.75,0.00023773,2]
[362485743,1748335846800,-1383.99,0.00023835,2]
[362485744,1748335846810,-430.0,0.00023835,2]
[362485745,1748335846821,-169.32499377,0.000239,2]
[362485746,1748335846829,-201.79302535,0.00024067,2]
[362485747,1748335846839,-150.0,0.000241,2]
[362485748,1748335846849,-1383.99,0.00024109,2]
[362485749,1748335846860,-430.0,0.00024109,2]
[362485750,1748335846870,-1383.99,0.00024383,2]
[362485751,1748335846881,-164.31599768,0.00024383,2]
[362485752,1748335846892,-500.0,0.000245,2]
[362485753,1748335846902,-337.811015,0.000245,3]
[362485754,1748335846912,-706725.62928036,0.000246,5]
[362485755,1748335847096,-5000.0,0.0001799,2]
[362485756,1748335847106,-500.0,0.00019173,2]
[362485757,1748335847115,-341.32086042,0.00022141,6]
[362485758,1748335847125,-341.32086042,0.00022314,7]
[362485759,1748335847135,-341.32086042,0.00022486,7]
[362485760,1748335847144,-341.32086042,0.00022659,7]
[362485761,1748335847153,-341.32086042,0.00022831,8]
[362485762,1748335847163,-341.32086042,0.00023003,8]
[362485763,1748335847172,-341.32086042,0.00023176,8]
[362485764,1748335847182,-341.32086042,0.00023348,9]
[362485765,1748335847191,-1655.93219746,0.000246,5]
[362485766,1748335847203,-7100.9845991,0.000246,5]
[362485770,1748336311209,200.0,0.00023838,120]
[362485771,1748336321412,500.0,0.00024,120]
[362485772,1748336322171,500.0,0.00024,120]
[362485773,1748336322952,500.0,0.00024,120]
[362485774,1748336323723,500.0,0.00024,120]
[362485775,1748336324510,500.0,0.00024,120]
[362485776,1748336325284,500.0,0.00024,120]
[362485777,1748336326089,500.0,0.00024,120]
[362485778,1748336326925,500.0,0.00024,120]
[362485779,1748336327734,500.0,0.00024,120]
[362485780,1748336328536,500.0,0.00024,120]
[362485781,1748336329350,500.0,0.00024,120]
[362485782,1748336330127,500.0,0.00024,120]
[362485783,1748336331081,500.0,0.00024,120]
[362485784,1748336331842,500.0,0.00024,120]
[362485785,1748336332636,569.33,0.00024,120]
[362485792,1748336490716,200.0,0.00024065,120]
[362485794,1748336550738,200.0,0.00024232,120]
[362485795,1748336610762,200.0,0.00023893,120]
[362485797,1748336814772,164.752036,0.00013699,2]
[362485799,1748336849113,-661.8998114,0.00017281,2]
[362485800,1748336953169,-4124.8102,0.00017281,2]
[362485801,1748336953201,-213.2899886,0.00017281,2]
[362485802,1748336953224,-1000.0,0.00017811,2]
[362485803,1748336953245,-184.100792,0.00017928,2]
[362485804,1748336953266,-745.0,0.00018156,2]
[362485805,1748336953300,-300.0,0.00018156,2]
[362485806,1748336953329,-24900.0,0.00018157,2]
[362485807,1748336971159,200.0,0.00023895,120]
[362485834,1748337032450,-5000.0,0.00018318,2]
[362485835,1748337032461,-201.79302535,0.00018503,2]
[362485836,1748337032479,-223.13311031,0.00018603,2]
[362485837,1748337032489,-300.0,0.00019176,2]
[362485838,1748337032498,-300.0,0.00019176,2]
[362485839,1748337032508,-1032.20754113,0.00019177,2]
[362485840,1748337032518,-513.41764711,0.00019177,2]
[362485841,1748337032528,-464.74547131,0.00019177,2]
[362485842,1748337032537,-500.0,0.00019177,2]
[362485843,1748337032547,-513.41764711,0.00019177,2]
[362485844,1748337032557,-513.41764711,0.00019177,2]
[362485845,1748337032567,-500.0,0.00019177,2]
[362485846,1748337032577,-513.41764711,0.00019177,2]
[362485847,1748337032586,-513.41764711,0.00019177,2]
[362485848,1748337032595,-513.41764711,0.00019177,2]
[362485849,1748337032605,-513.41764711,0.00019177,2]
[362485850,1748337032615,-171.26546782,0.00019177,2]
[362485851,1748337032625,-513.41764711,0.00019177,2]
[362485852,1748337032635,-513.41764711,0.00019177,2]
[362485853,1748337032645,-513.41764711,0.00019177,2]
[362485854,1748337032654,-513.41764711,0.00019177,2]
[362485855,1748337032665,-500.0,0.00019177,2]
[362485856,1748337032674,-513.41764711,0.00019177,2]
[362485857,1748337032684,-513.41764711,0.00019177,2]
[362485858,1748337032693,-513.41764711,0.00019177,2]
[362485859,1748337032703,-513.41764711,0.00019177,2]
[362485860,1748337032713,-513.41764711,0.00019177,2]
[362485861,1748337032723,-513.41764711,0.00019177,2]
[362485862,1748337032733,-513.41764711,0.00019177,2]
[362485863,1748337032743,-513.41764711,0.00019177,2]
[362485864,1748337032753,-547.64549024,0.00019177,2]
[362485865,1748337032763,-547.64549024,0.00019177,2]
[362485866,1748337032773,-547.64549024,0.00019177,2]
[362485867,1748337032783,-547.64549024,0.00019177,2]
[362485868,1748337032793,-547.64549024,0.00019177,2]
[362485869,1748337032803,-547.64549024,0.00019177,2]
[362485870,1748337032814,-547.64549024,0.00019177,2]
[362485871,1748337032824,-547.64549024,0.00019177,2]
[362485872,1748337032834,-547.64549024,0.00019177,2]
[362485873,1748337032844,-284.86729303,0.00019178,2]
[362485874,1748337032854,-430.0,0.00019178,2]
[362485875,1748337032864,-430.0,0.00019178,2]
[362485876,1748337032874,-430.0,0.00019178,2]
[362485877,1748337032884,-430.0,0.00019178,2]
[362485878,1748337032897,-430.0,0.00019178,2]
[362485879,1748337032908,-430.0,0.00019178,2]
[362485880,1748337032918,-430.0,0.00019178,2]
[362485881,1748337032929,-442.57,0.00019178,2]
[362485882,1748337032939,-430.0,0.00019178,2]
[362485883,1748337032949,-430.0,0.00019178,2]
[362485884,1748337032959,-494.55,0.00019178,2]
[362485885,1748337032968,-430.0,0.00019178,2]
[362485886,1748337032980,-515.55,0.00019178,2]
[362485887,1748337032991,-430.0,0.00019178,2]
[362485888,1748337033001,-472.10452465,0.00019178,2]
[362485889,1748337033010,-430.0,0.00019178,2]
[362485890,1748337033021,-430.0,0.00019178,2]
[362485891,1748337033031,-510.0,0.00019178,2]
[362485892,1748337033041,-430.0,0.00019178,2]
[362485893,1748337033052,-301.76805248,0.00019178,2]
[362485894,1748337033063,-430.0,0.00019178,2]
[362485895,1748337033074,-430.0,0.00019178,2]
[362485896,1748337033084,-510.0,0.00019178,2]
[362485897,1748337033094,-430.0,0.00019178,2]
[362485898,1748337033103,-430.0,0.00019178,2]
[362485899,1748337033113,-430.0,0.00019178,2]
[362485900,1748337033123,-430.0,0.00019178,2]
[362485901,1748337033133,-360.0,0.00019178,2]
[362485902,1748337033143,-430.0,0.00019178,2]
[362485903,1748337033152,-430.0,0.00019178,2]
[362485904,1748337033162,-575.7716853,0.00019178,2]
[362485905,1748337033172,-430.0,0.00019178,2]
[362485906,1748337033182,-500.0,0.00019178,2]
[362485907,1748337033191,-430.0,0.00019178,2]
[362485908,1748337033201,-430.0,0.00019178,2]
[362485909,1748337033211,-430.0,0.00019178,2]
[362485910,1748337033221,-440.0,0.00019178,2]
[362485911,1748337033231,-355.20931721,0.00019178,2]
[362485912,1748337033240,-500.0,0.00019178,2]
[362485913,1748337033250,-378.78,0.00019178,2]
[362485914,1748337033261,-440.0,0.00019178,2]
[362485915,1748337033271,-519.59724508,0.00019178,2]
[362485916,1748337033280,-483.75,0.00019178,2]
[362485917,1748337033290,-430.0,0.00019178,2]
[362485918,1748337033300,-430.0,0.00019178,2]
[362485919,1748337033310,-450.0,0.00019178,2]
[362485920,1748337033319,-443.92716718,0.00019178,2]
[362485921,1748337033328,-447.08089917,0.00019178,2]
[362485922,1748337033338,-430.0,0.00019178,2]
[362485923,1748337033348,-430.0,0.00019178,2]
[362485924,1748337033358,-430.0,0.00019178,2]
[362485925,1748337033368,-430.0,0.00019178,2]
[362485926,1748337033379,-430.0,0.00019178,2]
[362485927,1748337033389,-430.0,0.00019178,2]
[362485928,1748337033399,-430.0,0.00019178,2]
[362485929,1748337033408,-430.0,0.00019178,2]
[362485930,1748337033418,-430.0,0.00019178,2]
[362485931,1748337033427,-430.0,0.00019178,2]
[362485932,1748337033437,-430.0,0.00019178,2]
[362485933,1748337033446,-430.0,0.00019178,2]
[362485934,1748337033456,-430.0,0.00019178,2]
[362485935,1748337033465,-651.19,0.00019178,2]
[362485936,1748337033476,-430.0,0.00019178,2]
[362485937,1748337033485,-163.44205103,0.00019178,2]
[362485938,1748337033495,-430.0,0.00019178,2]
[362485939,1748337033505,-430.0,0.00019178,2]
[362485940,1748337033514,-430.0,0.00019178,2]
[362485941,1748337033524,-370.74557698,0.00019178,2]
[362485942,1748337033534,-430.0,0.00019178,2]
[362485943,1748337033543,-452.56514672,0.00019178,2]
[362485944,1748337033553,-430.0,0.00019178,2]
[362485945,1748337033562,-430.0,0.00019178,2]
[362485946,1748337033724,-285.83,0.00019178,2]
[362485947,1748337033735,-480.26,0.00019178,2]
[362485948,1748337033746,-430.0,0.00019178,2]
[362485949,1748337033755,-467.39,0.00019178,2]
[362485950,1748337033765,-430.0,0.00019178,2]
[362485951,1748337033775,-430.0,0.00019178,2]
[362485952,1748337033786,-430.0,0.00019178,2]
[362485953,1748337033796,-430.0,0.00019178,2]
[362485954,1748337033806,-430.0,0.00019178,2]
[362485955,1748337033816,-430.0,0.00019178,2]
[362485956,1748337033827,-430.0,0.00019178,2]
[362485957,1748337033837,-430.0,0.00019178,2]
[362485958,1748337033847,-587.3,0.00019178,2]
[362485959,1748337033857,-430.0,0.00019178,2]
[362485960,1748337033868,-430.0,0.00019178,2]
[362485961,1748337033878,-430.0,0.00019178,2]
[362485962,1748337033888,-430.0,0.00019178,2]
[362485963,1748337033900,-496.10316095,0.00019178,2]
[362485964,1748337033911,-430.0,0.00019178,2]
[362485965,1748337033920,-430.0,0.00019178,2]
[362485966,1748337033930,-451.68,0.00019178,2]
[362485967,1748337033940,-430.0,0.00019178,2]
[362485968,1748337033950,-430.0,0.00019178,2]
[362485969,1748337033960,-294.29869052,0.00019178,2]
[362485970,1748337033969,-430.0,0.00019178,2]
[362485971,1748337033981,-430.0,0.00019178,2]
[362485972,1748337033991,-436.69522882,0.00019178,2]
[362485973,1748337034001,-430.0,0.00019178,2]
[362485974,1748337034011,-561.02,0.00019178,2]
[362485975,1748337034021,-430.0,0.00019178,2]
[362485976,1748337034031,-430.0,0.00019178,2]
[362485977,1748337034041,-430.0,0.00019178,2]
[362485978,1748337034051,-430.0,0.00019178,2]
[362485979,1748337034061,-430.0,0.00019178,2]
[362485980,1748337034071,-430.0,0.00019178,2]
[362485981,1748337034082,-530.0,0.00019178,2]
[362485982,1748337034091,-430.0,0.00019178,2]
[362485983,1748337034102,-483.81,0.00019178,2]
[362485984,1748337034112,-430.0,0.00019178,2]
[362485985,1748337034122,-430.0,0.00019178,2]
[362485986,1748337034132,-430.0,0.00019178,2]
[362485987,1748337034141,-430.0,0.00019178,2]
[362485988,1748337034151,-475.52,0.00019178,2]
[362485989,1748337034161,-430.0,0.00019178,2]
[362485990,1748337034170,-430.0,0.00019178,2]
[362485991,1748337034180,-558.16197052,0.00019178,2]
[362485992,1748337034190,-430.0,0.00019178,2]
[362485993,1748337034199,-430.0,0.00019178,2]
[362485994,1748337034209,-430.0,0.00019178,2]
[362485995,1748337034218,-430.0,0.00019178,2]
[362485996,1748337034229,-430.0,0.00019178,2]
[362485997,1748337034238,-430.0,0.00019178,2]
[362485998,1748337034249,-430.0,0.00019178,2]
[362485999,1748337034259,-430.0,0.00019178,2]
[362486000,1748337034269,-430.0,0.00019178,2]
[362486001,1748337034279,-430.0,0.00019178,2]
[362486002,1748337034289,-430.0,0.00019178,2]
[362486003,1748337034298,-430.0,0.00019178,2]
[362486004,1748337034308,-192.323627,0.00019178,2]
[362486005,1748337034318,-430.0,0.00019452,2]
[362486006,1748337034328,-430.0,0.00019452,2]
[362486007,1748337034338,-351.02,0.00019452,2]
[362486008,1748337034348,-430.0,0.00019452,2]
[362486009,1748337034358,-430.0,0.00019452,2]
[362486010,1748337034368,-430.0,0.00019452,2]
[362486011,1748337034377,-430.0,0.00019452,2]
[362486012,1748337034387,-223.870631,0.00019452,2]
[362486013,1748337034398,-430.0,0.00019452,2]
[362486014,1748337034407,-472.01067594,0.00019452,2]
[362486015,1748337034417,-430.0,0.00019452,2]
[362486016,1748337034427,-430.0,0.00019452,2]
[362486017,1748337034436,-430.0,0.00019452,2]
[362486018,1748337034447,-430.0,0.00019452,2]
[362486019,1748337034457,-651.19,0.00019452,2]
[362486020,1748337034467,-430.0,0.00019452,2]
[362486021,1748337034476,-315.06,0.00019452,2]
[362486022,1748337034487,-430.0,0.00019452,2]
[362486023,1748337034497,-430.0,0.00019452,2]
[362486024,1748337034508,-430.0,0.00019452,2]
[362486025,1748337034518,-480.26,0.00019452,2]
[362486026,1748337034528,-467.39,0.00019452,2]
[362486027,1748337034537,-430.0,0.00019452,2]
[362486028,1748337034547,-430.0,0.00019452,2]
[362486029,1748337034556,-430.0,0.00019452,2]
[362486030,1748337034566,-430.0,0.00019452,2]
[362486031,1748337034575,-430.0,0.00019452,2]
[362486032,1748337034585,-430.0,0.00019452,2]
[362486033,1748337034595,-430.0,0.00019452,2]
[362486034,1748337034605,-494.09,0.00019452,2]
[362486035,1748337034615,-430.0,0.00019452,2]
[362486036,1748337034624,-430.0,0.00019452,2]
[362486037,1748337034634,-430.0,0.00019452,2]
[362486038,1748337034644,-430.0,0.00019452,2]
[362486039,1748337034654,-430.0,0.00019452,2]
[362486040,1748337034664,-430.0,0.00019452,2]
[362486041,1748337034673,-430.0,0.00019452,2]
[362486042,1748337034683,-430.0,0.00019452,2]
[362486043,1748337034692,-430.0,0.00019452,2]
[362486044,1748337034702,-333.39050248,0.00019452,2]
[362486045,1748337034712,-430.0,0.00019452,2]
[362486046,1748337034722,-430.0,0.00019452,2]
[362486047,1748337034732,-430.0,0.00019452,2]
[362486048,1748337034742,-430.0,0.00019452,2]
[362486049,1748337034751,-430.0,0.00019452,2]
[362486050,1748337034761,-430.0,0.00019452,2]
[362486051,1748337034770,-430.0,0.00019452,2]
[362486052,1748337034779,-214.94,0.00019452,2]
[362486053,1748337034788,-203.86889505,0.00019452,2]
[362486054,1748337034798,-430.0,0.00019452,2]
[362486055,1748337034807,-430.0,0.00019452,2]
[362486056,1748337034817,-430.0,0.00019452,2]
[362486057,1748337034826,-150.0,0.00019721,2]
[362486058,1748337034836,-430.0,0.00019726,2]
[362486059,1748337034846,-536.79,0.00019726,2]
[362486060,1748337034855,-430.0,0.00019726,2]
[362486061,1748337034865,-430.0,0.00019726,2]
[362486062,1748337034874,-430.0,0.00019726,2]
[362486063,1748337034884,-430.0,0.00019726,2]
[362486064,1748337034894,-430.0,0.00019726,2]
[362486065,1748337034907,-430.0,0.00019726,2]
[362486066,1748337034917,-430.0,0.00019726,2]
[362486067,1748337034927,-430.0,0.00019726,2]
[362486068,1748337034936,-651.19,0.00019726,2]
[362486069,1748337034947,-430.0,0.00019726,2]
[362486070,1748337034956,-480.26,0.00019726,2]
[362486071,1748337034966,-467.39,0.00019726,2]
[362486072,1748337034976,-430.0,0.00019726,2]
[362486073,1748337034986,-173.2,0.00019726,2]
[362486074,1748337034996,-430.0,0.00019726,2]
[362486075,1748337035006,-430.0,0.00019726,2]
[362486076,1748337035016,-200.72,0.00019726,2]
[362486077,1748337035026,-430.0,0.00019726,2]
[362486078,1748337035036,-430.0,0.00019726,2]
[362486079,1748337035046,-430.0,0.00019726,2]
[362486080,1748337035055,-430.0,0.00019726,2]
[362486081,1748337035065,-430.0,0.00019726,2]
[362486082,1748337035075,-430.0,0.00019726,2]
[362486083,1748337035084,-430.0,0.00019726,2]
[362486084,1748337035094,-430.0,0.00019726,2]
[362486085,1748337035103,-430.0,0.00019726,2]
[362486086,1748337035113,-528.73,0.00019726,2]
[362486087,1748337035122,-430.0,0.00019726,2]
[362486088,1748337035131,-430.0,0.00019726,2]
[362486089,1748337035141,-430.0,0.00019726,2]
[362486090,1748337035150,-430.0,0.00019726,2]
[362486091,1748337035160,-553.84,0.00019726,2]
[362486092,1748337035169,-430.0,0.00019726,2]
[362486093,1748337035179,-179.9820018,0.00019742,2]
[362486094,1748337035189,-212.62946336,0.00019794,2]
[362486095,1748337035198,-372.0,0.00019807,2]
[362486096,1748337035208,-167.75816955,0.000199,2]
[362486097,1748337035217,-500.0,0.00019926,2]
[362486098,1748337035226,-500.0,0.00019926,2]
[362486099,1748337035235,-500.0,0.0002,2]
[362486100,1748337035245,-430.0,0.0002,2]
[362486101,1748337035255,-430.0,0.0002,2]
[362486102,1748337035264,-430.0,0.0002,2]
[362486103,1748337035274,-430.0,0.0002,2]
[362486104,1748337035283,-430.0,0.0002,2]
[362486105,1748337035293,-430.0,0.0002,2]
[362486106,1748337035302,-430.0,0.0002,2]
[362486107,1748337035313,-430.0,0.0002,2]
[362486108,1748337035322,-651.19,0.0002,2]
[362486109,1748337035331,-430.0,0.0002,2]
[362486110,1748337035341,-480.26,0.0002,2]
[362486111,1748337035350,-467.39,0.0002,2]
[362486112,1748337035360,-430.0,0.0002,2]
[362486113,1748337035369,-430.0,0.0002,2]
[362486114,1748337035379,-159.37,0.0002,2]